Workbook

Sheet WT reads
A1: Supplementary Table 2. Small RNA sequencing profile of liver from ob/ob mice and C57BL/6J littermates.
A2: mature miRNA | B2: C57BL/6J liver reads | C2: Percent of total reads | F2: total reads | G2: C57BL/6J liver reads | H2: OB/OB liver reads | I2: C57BL/6J liver reads
A3: mmu-miR-122-5p | B3: 188500 | C3: =B3/$I$3*100 -> 12.51983414 | G3: 1505611 | H3: 1846688 | I3: =SUM(B3:B538) -> 1505611
A4: mmu-miR-21a-5p | B4: 170013 | C4: =B4/$I$3*100 -> 11.29196054
A5: mmu-miR-148a-3p | B5: 163640 | C5: =B5/$I$3*100 -> 10.86867723
A6: mmu-miR-30a-5p | B6: 139983 | C6: 9.297421446
A7: mmu-miR-143-3p | B7: 93364 | C7: 6.201070529
A8: mmu-miR-101a-3p, mmu-miR-101c | B8: 74347 | C8: 4.937995272
A9: mmu-let-7f-5p | B9: 73865 | C9: 4.905981691
A10: mmu-miR-22-3p | B10: 70142 | C10: 4.658706665
A11: mmu-miR-101b-3p | B11: 67859 | C11: 4.507073872
A12: mmu-miR-92a-3p | B12: 47330 | C12: 3.14357427
A13: mmu-let-7a-5p | B13: 36519 | C13: 2.425526912
A14: mmu-miR-192-5p | B14: 35719 | C14: 2.372392338
A15: mmu-miR-378a-3p | B15: 34525 | C15: 2.293088985
A16: mmu-miR-10a-5p | B16: 32134 | C16: 2.134283025
A17: mmu-let-7c-5p | B17: 23132 | C17: 1.536386225
A18: mmu-miR-26a-5p | B18: 21830 | C18: 1.449909704
A19: mmu-let-7g-5p | B19: 18090 | C19: 1.201505568
A20: mmu-miR-26b-5p | B20: 14371 | C20: 0.9544962145
A21: mmu-miR-30e-5p | B21: 13448 | C21: 0.893192199
A22: mmu-miR-101c | B22: 13370 | C22: 0.888011578
A23: mmu-miR-30d-5p | B23: 13090 | C23: 0.8694144769
A24: mmu-let-7b-5p | B24: 10041 | C24: 0.6669053295
A25: mmu-miR-27b-3p | B25: 7283 | C25: 0.4837238835
A26: mmu-miR-126a-5p | B26: 6963 | C26: 0.4624700537
A27: mmu-miR-25-3p | B27: 6872 | C27: 0.4564259958
A28: mmu-let-7i-5p | B28: 6557 | C28: 0.4355042571
A29: mmu-miR-378a-3p, mmu-miR-378c | B29: 6202 | C29: 0.4119257896
A30: mmu-miR-103-3p | B30: 6088 | C30: 0.4043541127
A31: mmu-miR-486-5p, mmu-miR-3107-5p | B31: 6033 | C31: 0.4007011107
A32: mmu-miR-203-3p | B32: 5520 | C32: 0.3666285647
A33: mmu-miR-181a-5p | B33: 4077 | C33: 0.2707870758
A34: mmu-miR-30c-5p | B34: 4073 | C34: 0.2705214029
A35: mmu-miR-340-5p | B35: 3954 | C35: 0.262617635
A36: mmu-miR-194-5p | B36: 3608 | C36: 0.2396369315
A37: mmu-miR-29a-3p | B37: 3593 | C37: 0.2386406582
A38: mmu-miR-126a-3p | B38: 3393 | C38: 0.2253570145
A39: mmu-miR-30a-3p | B39: 3212 | C39: 0.213335317
A40: mmu-miR-16-5p | B40: 3107 | C40: 0.2063614041
A41: mmu-miR-140-3p | B41: 2901 | C41: 0.1926792511
A42: mmu-let-7d-5p | B42: 2873 | C42: 0.190819541
A43: mmu-miR-103-3p, mmu-miR-107-3p | B43: 2737 | C43: 0.1817866634
A44: mmu-miR-455-5p | B44: 2371 | C44: 0.1574775955
A45: mmu-miR-199a-3p, mmu-miR-199b-3p | B45: 2228 | C45: 0.1479797903
A46: mmu-miR-19b-3p | B46: 1821 | C46: 0.1209475754
A47: mmu-miR-93-5p | B47: 1760 | C47: 0.1168960641
A48: mmu-miR-532-5p | B48: 1661 | C48: 0.1103206605
A49: mmu-miR-24-3p | B49: 1582 | C49: 0.1050736213
A50: mmu-miR-107-3p | B50: 1564 | C50: 0.1038780933
A51: mmu-miR-7a-5p | B51: 1534 | C51: 0.1018855468
A52: mmu-miR-151-5p | B52: 1480 | C52: 0.09829896301
A53: mmu-miR-148b-3p | B53: 1403 | C53: 0.09318476021
A54: mmu-miR-191-5p | B54: 1380 | C54: 0.09165714119
A55: mmu-miR-30e-3p | B55: 1330 | C55: 0.08833623027
A56: mmu-miR-151-3p | B56: 1261 | C56: 0.08375337322
A57: mmu-miR-30c-2-3p | B57: 1230 | C57: 0.08169440845
A58: mmu-miR-152-3p | B58: 1134 | C58: 0.0753182595
A59: mmu-miR-31-5p | B59: 1120 | C59: 0.07438840444
A60: mmu-miR-182-5p | B60: 1110 | C60: 0.07372422226
A61: mmu-miR-451a | B61: 1041 | C61: 0.0691413652
A62: mmu-let-7e-5p | B62: 952 | C62: 0.06323014378
A63: mmu-miR-30b-5p | B63: 948 | C63: 0.0629644709
A64: mmu-miR-1839-5p | B64: 873 | C64: 0.05798310453
A65: mmu-miR-99b-5p | B65: 856 | C65: 0.05685399482
A66: mmu-miR-130a-3p | B66: 848 | C66: 0.05632264908
A67: mmu-miR-101a-3p | B67: 813 | C67: 0.05399801144
A68: mmu-miR-29c-3p | B68: 768 | C68: 0.05100919162
A69: mmu-miR-221-3p | B69: 691 | C69: =B69/$I$3*100 -> 0.04589498881
A70: mmu-miR-5099 | B70: 671 | C70: 0.04456662445
A71: mmu-miR-127-3p | B71: 666 | C71: 0.04423453336
A72: mmu-miR-676-3p | B72: 664 | C72: 0.04410169692
A73: mmu-miR-98-5p | B73: 634 | C73: 0.04210915037
A74: mmu-miR-194-2-3p | B74: 633 | C74: 0.04204273215
A75: mmu-miR-423-3p | B75: 617 | C75: 0.04098004066
A76: mmu-miR-1843a-5p | B76: 611 | C76: 0.04058153135
A77: mmu-miR-10b-5p | B77: 571 | C77: 0.03792480262
A78: mmu-miR-200a-3p | B78: 570 | C78: 0.0378583844
A79: mmu-miR-23b-3p | B79: 565 | C79: 0.03752629331
A80: mmu-miR-125a-5p | B80: 558 | C80: 0.03706136578
A81: mmu-miR-222-3p | B81: 533 | C81: 0.03540091033
A82: mmu-miR-148a-5p | B82: 509 | C82: 0.03380687309
A83: mmu-miR-28a-3p | B83: 505 | C83: 0.03354120022
A84: mmu-miR-181b-5p | B84: 489 | C84: 0.03247850873
A85: mmu-miR-15a-5p | B85: 421 | C85: 0.02796206988
A86: mmu-miR-20a-5p | B86: 415 | C86: 0.02756356057
A87: mmu-miR-125b-5p | B87: 400 | C87: 0.0265672873
A88: mmu-miR-1843a-5p, mmu-miR-1843b-5p | B88: 399 | C88: 0.02650086908
A89: mmu-miR-186-5p | B89: 377 | C89: 0.02503966828
A90: mmu-miR-19a-3p | B90: 373 | C90: 0.02477399541
A91: mmu-miR-145a-5p | B91: 372 | C91: 0.02470757719
A92: mmu-miR-378b | B92: 371 | C92: 0.02464115897
A93: mmu-miR-99a-3p | B93: 371 | C93: 0.02464115897
A94: mmu-miR-142-5p | B94: 357 | C94: 0.02371130392
A95: mmu-miR-27a-3p | B95: 345 | C95: 0.0229142853
A96: mmu-miR-320-3p | B96: 332 | C96: 0.02205084846
A97: mmu-miR-328-3p | B97: 320 | C97: 0.02125382984
A98: mmu-miR-181c-5p | B98: 316 | C98: 0.02098815697
A99: mmu-miR-1843a-3p | B99: 313 | C99: 0.02078890231
A100: mmu-miR-28a-5p, mmu-miR-28c | B100: 302 | C100: 0.02005830191
A101: mmu-miR-1843b-5p | B101: 294 | C101: 0.01952695617
A102: mmu-miR-423-5p | B102: 292 | C102: 0.01939411973
A103: mmu-miR-122-3p | B103: 291 | C103: 0.01932770151
A104: mmu-miR-455-3p | B104: 272 | C104: 0.01806575536
A105: mmu-miR-744-5p | B105: 267 | C105: 0.01773366427
A106: mmu-let-7f-2-3p | B106: 238 | C106: 0.01580753594
A107: mmu-miR-23a-3p | B107: 231 | C107: 0.01534260842
A108: mmu-miR-339-5p | B108: 219 | C108: 0.0145455898
A109: mmu-miR-146b-5p | B109: 215 | C109: 0.01427991692
A110: mmu-miR-185-5p | B110: 213 | C110: 0.01414708049
A111: mmu-miR-375-3p | B111: 195 | C111: 0.01295155256
A112: mmu-let-7a-5p, mmu-let-7c-5p | B112: 194 | C112: 0.01288513434
A113: mmu-miR-379-5p | B113: 194 | C113: 0.01288513434
A114: mmu-miR-99a-5p | B114: 194 | C114: 0.01288513434
A115: mmu-miR-29b-3p | B115: 191 | C115: 0.01268587969
A116: mmu-miR-361-3p | B116: 189 | C116: 0.01255304325
A117: mmu-miR-34a-5p | B117: 188 | C117: 0.01248662503
A118: mmu-miR-574-3p | B118: 187 | C118: 0.01242020681
A119: mmu-miR-200b-3p | B119: 181 | C119: 0.0120216975
A120: mmu-miR-132-3p | B120: 180 | C120: 0.01195527929
A121: mmu-let-7d-3p | B121: 174 | C121: 0.01155676998
A122: mmu-miR-21a-3p | B122: 173 | C122: 0.01149035176
A123: mmu-miR-27b-3p, mmu-miR-27a-3p | B123: 172 | C123: 0.01142393354
A124: mmu-miR-100-5p | B124: 168 | C124: 0.01115826067
A125: mmu-miR-106b-5p | B125: 163 | C125: 0.01082616958
A126: mmu-miR-106b-3p | B126: 162 | C126: 0.01075975136
A127: mmu-miR-183-5p | B127: 160 | C127: 0.01062691492
A128: mmu-miR-541-5p | B128: 160 | C128: 0.01062691492
A129: mmu-miR-671-3p | B129: 150 | C129: 0.009962732738
A130: mmu-miR-598-3p | B130: 147 | C130: 0.009763478083
A131: mmu-miR-139-5p | B131: 142 | C131: 0.009431386992
A132: mmu-miR-195a-5p | B132: 140 | C132: 0.009298550555
A133: mmu-let-7a-1-3p, mmu-let-7c-2-3p | B133: 137 | C133: =B133/$I$3*100 -> 0.0090992959
A134: mmu-miR-17-5p | B134: 131 | C134: 0.008700786591
A135: mmu-miR-125b-2-3p | B135: 130 | C135: 0.008634368373
A136: mmu-miR-152-5p | B136: 125 | C136: 0.008302277281
A137: mmu-miR-1198-5p | B137: 118 | C137: 0.007837349754
A138: mmu-miR-1948-3p | B138: 118 | C138: 0.007837349754
A139: mmu-miR-144-3p | B139: 111 | C139: 0.007372422226
A140: mmu-miR-210-3p | B140: 110 | C140: 0.007306004008
A141: mmu-miR-429-3p | B141: 110 | C141: 0.007306004008
A142: mmu-miR-802-5p | B142: 108 | C142: 0.007173167571
A143: mmu-miR-872-5p | B143: 108 | C143: 0.007173167571
A144: mmu-miR-425-5p | B144: 99 | C144: 0.006575403607
A145: mmu-miR-381-3p | B145: 97 | C145: 0.00644256717
A146: mmu-miR-128-3p | B146: 95 | C146: 0.006309730734
A147: mmu-miR-378a-5p | B147: 95 | C147: 0.006309730734
A148: mmu-miR-676-5p | B148: 94 | C148: 0.006243312516
A149: mmu-miR-362-3p | B149: 93 | C149: 0.006176894297
A150: mmu-miR-652-3p | B150: 93 | C150: 0.006176894297
A151: mmu-miR-351-5p | B151: 91 | C151: 0.006044057861
A152: mmu-miR-411-5p | B152: 82 | C152: 0.005446293897
A153: mmu-miR-365-3p | B153: 81 | C153: 0.005379875678
A154: mmu-miR-361-5p | B154: 78 | C154: 0.005180621024
A155: mmu-miR-9-5p | B155: 76 | C155: 0.005047784587
A156: mmu-miR-199a-5p | B156: 75 | C156: 0.004981366369
A157: mmu-miR-484 | B157: 74 | C157: 0.004914948151
A158: mmu-miR-3535 | B158: 72 | C158: 0.004782111714
A159: mmu-miR-335-5p | B159: 69 | C159: 0.004582857059
A160: mmu-miR-190a-5p | B160: 68 | C160: 0.004516438841
A161: mmu-miR-144-5p | B161: 67 | C161: 0.004450020623
A162: mmu-miR-15b-5p | B162: 67 | C162: 0.004450020623
A163: mmu-miR-542-3p | B163: 63 | C163: 0.00418434775
A164: mmu-miR-1981-5p | B164: 62 | C164: 0.004117929532
A165: mmu-miR-146a-5p | B165: 61 | C165: 0.004051511313
A166: mmu-miR-215-5p | B166: 60 | C166: 0.003985093095
A167: mmu-miR-664-5p | B167: 60 | C167: 0.003985093095
A168: mmu-miR-1843b-3p | B168: 57 | C168: 0.00378583844
A169: mmu-miR-181d-5p | B169: 55 | C169: 0.003653002004
A170: mmu-miR-16-1-3p | B170: 54 | C170: 0.003586583786
A171: mmu-miR-193a-5p | B171: 54 | C171: 0.003586583786
A172: mmu-miR-409-3p | B172: 54 | C172: 0.003586583786
A173: mmu-miR-322-3p | B173: 53 | C173: 0.003520165567
A174: mmu-miR-99b-3p | B174: 53 | C174: 0.003520165567
A175: mmu-miR-181a-1-3p | B175: 52 | C175: 0.003453747349
A176: mmu-miR-223-3p | B176: 52 | C176: 0.003453747349
A177: mmu-miR-192-3p | B177: 50 | C177: 0.003320910913
A178: mmu-miR-22-5p | B178: 50 | C178: 0.003320910913
A179: mmu-miR-574-5p | B179: 48 | C179: 0.003188074476
A180: mmu-miR-30b-3p | B180: 45 | C180: 0.002988819821
A181: mmu-miR-193a-3p | B181: 44 | C181: 0.002922401603
A182: mmu-miR-1948-5p | B182: 44 | C182: 0.002922401603
A183: mmu-miR-195a-3p | B183: 44 | C183: 0.002922401603
A184: mmu-miR-3068-5p | B184: 44 | C184: 0.002922401603
A185: mmu-miR-425-3p | B185: 41 | C185: 0.002723146948
A186: mmu-miR-150-5p | B186: 40 | C186: 0.00265672873
A187: mmu-miR-511-3p | B187: 40 | C187: 0.00265672873
A188: mmu-miR-24-2-5p | B188: 39 | C188: 0.002590310512
A189: mmu-miR-30d-3p | B189: 39 | C189: 0.002590310512
A190: mmu-miR-142-3p | B190: 37 | C190: 0.002457474075
A191: mmu-miR-1a-3p | B191: 37 | C191: 0.002457474075
A192: mmu-miR-434-5p | B192: 36 | C192: 0.002391055857
A193: mmu-miR-592-5p | B193: 36 | C193: 0.002391055857
A194: mmu-miR-140-5p | B194: 35 | C194: 0.002324637639
A195: mmu-miR-28a-5p | B195: 35 | C195: 0.002324637639
A196: mmu-miR-137-3p | B196: 34 | C196: 0.002258219421
A197: mmu-miR-1191 | B197: 33 | C197: =B197/$I$3*100 -> 0.002191801202
A198: mmu-miR-434-3p | B198: 32 | C198: 0.002125382984
A199: mmu-miR-300-3p | B199: 31 | C199: 0.002058964766
A200: mmu-miR-32-5p | B200: 30 | C200: 0.001992546548
... 338 more rows
